bitfinex/quotes_SOLUSD_20260203
["timestamp","ask_amount","ask_price","bid_price","bid_amount"]
[1770105503182,1.3969129,104.81,104.77,8.75496404]
[1770105505276,1.3969129,104.81,104.77,18.2988939]
[1770105506091,1.3969129,104.81,104.78,8.75496404]
[1770105507686,1.3969129,104.81,104.78,18.29873583]
[1770105508785,1.3969129,104.81,104.76,0.28432314]
[1770105508989,1.3969129,104.8,104.76,18.29992286]
[1770105509368,8.75496404,104.79,104.74,18.30152547]
[1770105509690,1.3969129,104.78,104.74,18.30152547]
[1770105512388,1.3969129,104.78,104.74,13.05167816]
[1770105513286,10.9407704,104.78,104.74,13.05167816]
[1770105513483,1.3969129,104.77,104.74,13.05167816]
[1770105513789,1.3969129,104.77,104.74,9.54656143]
[1770105514997,1.3969129,104.77,104.74,13.05167816]
[1770105519694,10.94209413,104.77,104.74,3.50511673]
[1770105519897,1.3969129,104.76,104.72,3.78943987]
[1770105520076,1.3969129,104.76,104.73,9.54795179]
[1770105520607,1.3969129,104.75,104.71,36.04989572]
[1770105520784,1.3969129,104.74,104.71,36.04989572]
[1770105521194,1.3969129,104.74,104.71,39.55501245]
[1770105522706,1.3969129,104.74,104.71,36.04989572]
[1770105524201,10.94262345,104.76,104.72,3.50511673]
[1770105525198,10.9422591,104.77,104.73,3.50511673]
[1770105527299,10.9422591,104.77,104.73,13.05273508]
[1770105528798,1.3969129,104.75,104.73,9.54761835]
[1770105529298,1.3969129,104.75,104.72,9.54878842]
[1770105530776,1.3969129,104.75,104.72,13.05390515]
[1770105531583,1.3969129,104.75,104.72,9.54878842]
[1770105533505,10.9427698,104.76,104.72,9.54878842]
[1770105533685,1.3969129,104.75,104.72,13.05390515]
[1770105533885,1.3969129,104.75,104.72,9.54878842]
[1770105534101,1.3969129,104.74,104.71,36.06975548]
[1770105534804,1.3969129,104.74,104.71,9.54975548]
[1770105535606,1.3969129,104.73,104.7,9.55089379]
[1770105535911,4.90202963,104.73,104.7,9.55089379]
[1770105536237,1.3969129,104.71,104.69,0.2]
[1770105537491,1.3969129,104.71,104.69,9.75188824]
[1770105539489,1.3969129,104.72,104.69,9.75188824]
[1770105540617,1.3969129,104.71,104.69,0.2]
[1770105541403,1.3969129,104.7,104.69,0.2]
[1770105541602,1.2969129,104.69,104.67,0.2]
[1770105541792,1.2969129,104.68,104.67,0.2]
[1770105542307,13.05577014,104.71,104.67,9.75373284]
[1770105542811,13.0548397,104.72,104.67,14.46313507]
[1770105543510,3.50511673,104.71,104.67,9.75373284]
[1770105544298,3.50511673,104.71,104.67,10.95801834]
[1770105544299,1.2450424,104.7,104.67,10.95801834]
[1770105544499,1.2450424,104.7,104.67,14.46313507]
[1770105545717,13.0548397,104.72,104.67,14.46313507]
[1770105545718,1.2450424,104.71,104.68,4.70940223]
[1770105546215,1.2450424,104.71,104.68,14.26208774]
[1770105546802,1.2450424,104.71,104.68,10.75697101]
[1770105547422,1.2450424,104.7,104.67,13.25848571]
[1770105547627,1.2450424,104.7,104.67,14.46277121]
[1770105547931,1.2450424,104.7,104.67,10.95765448]
[1770105549019,1.2450424,104.7,104.68,9.55291949]
[1770105549620,1.2450424,104.7,104.67,9.75336801]
[1770105550222,1.2450424,104.7,104.67,10.95765351]
[1770105550524,1.2450424,104.7,104.67,14.46277024]
[1770105553913,1.2450424,104.71,104.68,4.70940223]
[1770105554320,1.2450424,104.72,104.69,4.70940223]
[1770105554831,1.2450424,104.72,104.69,1.2042855]
[1770105555127,1.2450424,104.72,104.69,4.70940223]
[1770105556106,1.2450424,104.72,104.7,9.55109837]
[1770105557544,1.2450424,104.73,104.7,14.2605006]
[1770105558027,1.2450424,104.73,104.7,10.75538387]
[1770105559628,1.2450424,104.73,104.7,14.2605006]
[1770105560417,1.2450424,104.73,104.7,38.12993926]
[1770105561418,1.2450424,104.73,104.7,14.25219332]
[1770105561814,1.17033956,104.72,104.7,9.55109837]
[1770105563224,1.17033956,104.71,104.69,9.55199313]
[1770105565636,1.17033956,104.71,104.69,13.05710986]
[1770105565934,1.17033956,104.73,104.7,4.70109495]
[1770105566732,1.17033956,104.73,104.7,1.19597822]
[1770105566936,1.17033956,104.73,104.7,4.70109495]
[1770105567739,1.17033956,104.73,104.7,14.25176561]
[1770105568429,1.17033956,104.74,104.71,4.70109495]
[1770105569841,1.17033956,104.74,104.72,9.54927425]
[1770105571537,1.17033956,104.74,104.71,10.74614271]
[1770105571737,1.17033956,104.74,104.71,9.55016449]
[1770105574748,1.17033956,104.74,104.71,13.05794805]
[1770105576451,1.17033956,104.75,104.72,1.19597822]
[1770105576948,1.17033956,104.75,104.71,14.25392627]
[1770105577343,1.17033956,104.74,104.71,14.25392627]
[1770105577554,1.17033956,104.74,104.71,9.55016449]
[1770105579143,1.17033956,104.74,104.71,14.25327805]
[1770105580629,23.86438533,104.76,104.73,4.69962751]
[1770105580630,1.17033956,104.76,104.73,4.69962751]
[1770105580826,3.50778356,104.76,104.72,4.69962751]
[1770105581030,1.17033956,104.75,104.72,4.69962751]
[1770105582248,1.17033956,104.74,104.71,23.87546557]
[1770105582433,1.17033956,104.74,104.72,9.54920901]
[1770105584148,1.17033956,104.76,104.73,4.69454715]
[1770105584445,1.17033956,104.76,104.73,10.73464837]
[1770105584654,1.17033956,104.75,104.72,10.73393837]
[1770105584951,1.17033956,104.75,104.73,10.73342966]
[1770105585147,1.17033956,104.75,104.73,9.54832077]
[1770105585950,1.17033956,104.76,104.73,14.23957753]
[1770105586153,1.17033956,104.76,104.73,10.73179397]
[1770105590354,1.17033956,104.76,104.73,14.23957753]
[1770105591453,1.16891842,104.75,104.72,4.65106159]
[1770105591637,1.16891842,104.75,104.72,13.05701133]
[1770105591838,1.16891842,104.75,104.72,14.20028936]
[1770105594057,10.7145861,104.76,104.73,4.65106159]
[1770105594252,1.16891842,104.75,104.73,4.65106159]
[1770105594560,1.16891842,104.76,104.73,14.19888458]
[1770105596560,1.16891842,104.76,104.74,10.69069617]
[1770105596857,1.16891842,104.78,104.75,4.65106159]
[1770105597766,1.16891842,104.78,104.76,1.14327803]
[1770105598149,1.16891842,104.78,104.76,4.65106159]
[1770105598671,9.54331447,104.79,104.76,14.19657686]
[1770105598672,1.16891842,104.79,104.76,14.19657686]
[1770105598964,9.5423571,104.8,104.77,4.65106159]
[1770105598965,10.71127552,104.8,104.77,4.65106159]
[1770105599263,1.16891842,104.79,104.77,4.65106159]
[1770105600666,1.16891842,104.8,104.77,14.19530787]
[1770105600867,1.16891842,104.8,104.77,4.65106159]
[1770105601056,1.16891842,104.8,104.77,14.19566973]
[1770105602465,1.16891842,104.81,104.78,1.14327803]
[1770105602674,1.16891842,104.81,104.78,4.65106159]
[1770105602869,1.16891842,104.8,104.77,9.54460814]
[1770105603250,1.16891842,104.8,104.77,13.0523917]
[1770105603673,1.16891842,104.78,104.75,1.14327803]
[1770105603969,1.16891842,104.78,104.75,10.68930005]
[1770105604158,3.50778356,104.77,104.74,9.54696446]
[1770105604465,1.16891842,104.76,104.74,9.54696446]
[1770105604847,1.16891842,104.77,104.74,10.69024249]
[1770105605059,1.16891842,104.77,104.74,14.19802605]
[1770105605271,1.16891842,104.78,104.75,4.65106159]
[1770105606056,1.16891842,104.81,104.78,1.14327803]
[1770105606248,1.16891842,104.79,104.75,1.14327803]
[1770105606462,1.16891842,104.79,104.76,1.14327803]
[1770105606658,1.16891842,104.79,104.76,9.54512725]
[1770105606864,1.16891842,104.78,104.75,14.1970648]
[1770105607161,1.16891842,104.76,104.72,23.87282629]
[1770105607364,1.16891842,104.76,104.72,28.52388788]
[1770105607878,1.16891842,104.76,104.73,9.54793233]
[1770105608071,1.16891842,104.76,104.73,13.05571589]
[1770105608374,1.16891842,104.76,104.73,9.54793233]
[1770105610177,1.16891842,104.76,104.73,13.05571589]
[1770105610559,1.16891842,104.76,104.73,9.54793233]
[1770105612698,1.16891842,104.77,104.74,4.65106159]
[1770105613158,1.16891842,104.77,104.73,38.06990005]
[1770105613358,1.16891842,104.77,104.73,34.56211649]
[1770105613662,1.16891842,104.77,104.74,1.14224197]
[1770105613857,1.16891842,104.77,104.73,14.19795786]
[1770105614289,13.05165091,104.78,104.73,36.92662202]
[1770105614480,1.16891842,104.78,104.74,4.65002553]
[1770105615779,1.16891842,104.77,104.74,14.19696138]
[1770105622175,1.16891842,104.77,104.74,10.68917782]
[1770105622378,1.16891842,104.77,104.74,14.19696138]
[1770105622874,1.16891842,104.77,104.74,38.06558845]
[1770105623081,1.16891842,104.77,104.75,4.63916548]
[1770105624478,1.16891842,104.77,104.75,13.05352901]
[1770105625384,1.16891842,104.77,104.75,9.54574545]
[1770105626483,1.16891842,104.77,104.75,13.05352901]
[1770105626784,13.05013984,104.8,104.76,3.50778356]
[1770105626785,1.09609972,104.79,104.76,3.50778356]
[1770105627165,1.09609972,104.79,104.76,4.63516079]
[1770105627876,1.09609972,104.79,104.76,9.54538269]
[1770105629385,1.09609972,104.78,104.76,9.54538269]
[1770105629885,1.09609972,104.78,104.75,14.18022148]
[1770105630488,1.09609972,104.77,104.74,14.17924851]
[1770105630690,1.09609972,104.77,104.73,9.54759305]
[1770105630892,1.09609972,104.76,104.73,14.17893]
[1770105631187,1.09609972,104.76,104.74,13.05483923]
[1770105631485,1.09609972,104.77,104.74,14.17839262]
[1770105632088,1.09609972,104.77,104.74,13.05483923]
[1770105632483,1.09609972,104.77,104.74,13.05227672]
[1770105632684,1.09609972,104.77,104.74,14.17398344]
[1770105633197,1.09609972,104.78,104.75,4.62692777]
[1770105633374,1.09609972,104.78,104.76,3.50522105]
[1770105634598,1.09609972,104.8,104.77,3.50522105]
[1770105635592,1.09609972,104.79,104.77,3.50522105]
[1770105635793,1.09609972,104.79,104.76,13.05057716]
[1770105636792,1.09609972,104.78,104.74,3.50522105]
[1770105637488,1.09609972,104.78,104.74,14.17037626]
[1770105638096,1.09609972,104.78,104.75,13.05174466]
[1770105638393,1.09609972,104.78,104.76,3.50522105]
[1770105638899,1.09609972,104.78,104.76,13.05080921]
[1770105639397,1.09609972,104.78,104.76,3.50522105]
[1770105639891,1.09609972,104.78,104.75,14.16855119]
[1770105640125,1.09609972,104.78,104.76,3.50522105]
[1770105641295,1.09609972,104.77,104.73,40.68787442]
[1770105643100,1.09609972,104.76,104.73,40.68787442]
[1770105645375,1.09609972,104.76,104.73,10.66265337]
[1770105645587,1.09609972,104.73,104.69,3.50522105]
[1770105645903,1.09609972,104.71,104.68,9.55239188]
[1770105646108,1.09609972,104.71,104.68,13.05761293]
[1770105646607,1.09609972,104.71,104.69,13.0571709]
[1770105647205,1.09609972,104.71,104.68,14.16758617]
[1770105647584,1.09609972,104.71,104.68,9.55245655]
[1770105648513,1.09609972,104.7,104.67,14.36858669]
[1770105649900,1.09609972,104.71,104.68,4.61284028]
[1770105650292,1.09609972,104.71,104.68,3.50522105]
[1770105650614,1.09609972,104.71,104.67,14.3655517]
[1770105651209,1.09609972,104.71,104.67,38.25014136]
[1770105654715,1.09609972,104.71,104.68,1.10257613]
[1770105654917,1.09609972,104.71,104.68,4.60779718]
[1770105655716,1.09609972,104.71,104.68,1.10257613]
[1770105655907,1.19714656,104.7,104.67,9.75345707]
[1770105656407,1.19714656,104.7,104.67,13.25867812]
[1770105656798,1.19714656,104.7,104.67,14.3598867]
[1770105657409,13.05547749,104.71,104.67,14.3598867]
[1770105657410,1.19714656,104.71,104.68,4.60642963]
[1770105657816,1.19714656,104.72,104.69,1.10053657]
[1770105657991,1.19714656,104.72,104.69,4.60575762]
[1770105659306,1.19714656,104.73,104.7,14.15550871]
[1770105660400,1.19714656,104.75,104.71,4.60443665]
[1770105660705,1.19714656,104.74,104.71,4.60443665]
[1770105661415,1.19714656,104.74,104.7,10.64898186]
[1770105661708,1.19714656,104.74,104.7,14.15420291]
[1770105662522,1.19714656,104.73,104.7,14.15420291]
[1770105664311,1.19714656,104.74,104.71,4.60188454]
[1770105664620,1.19714656,104.75,104.72,14.15115879]
[1770105664806,1.19714656,104.75,104.73,3.50522105]
[1770105665511,1.19714656,104.75,104.72,38.02434442]
[1770105668419,1.19714656,104.77,104.74,3.50522105]
[1770105668801,1.19714656,104.77,104.73,14.14720749]
[1770105670312,1.19714656,104.76,104.73,14.14720749]
[1770105671910,1.19714656,104.75,104.72,13.05404981]
[1770105672112,1.19714656,104.75,104.72,14.14594963]
[1770105672316,1.19714656,104.76,104.73,14.14507482]
[1770105673508,1.19714656,104.78,104.75,4.59655577]
[1770105673713,1.19714656,104.78,104.76,3.50522105]
[1770105674724,1.19714656,104.79,104.76,3.50522105]
[1770105675230,1.19714656,104.79,104.75,1.09133472]
[1770105675428,1.19714656,104.79,104.75,4.59655577]
[1770105676122,1.19714656,104.77,104.73,28.46580526]
[1770105676812,1.19714656,104.77,104.74,9.54703649]
[1770105677825,1.19714656,104.77,104.74,10.63564161]
[1770105678032,1.19714656,104.79,104.75,14.13993181]
[1770105678712,1.19714656,104.78,104.75,9.54610564]
[1770105679131,1.19714656,104.78,104.75,13.05132669]
[1770105679335,1.19714656,104.78,104.76,9.54559988]
[1770105679632,1.19714656,104.79,104.76,14.13889879]
[1770105680526,13.04670443,104.81,104.76,14.13889879]
[1770105680710,1.0871648,104.8,104.77,4.59175321]
[1770105681127,1.0871648,104.8,104.75,9.54573069]
[1770105681334,1.0871648,104.78,104.75,13.05095174]
[1770105681728,1.0871648,104.78,104.75,14.13698046]
[1770105682217,1.0871648,104.78,104.76,9.54559004]
[1770105682422,1.0871648,104.78,104.76,13.05081109]
[1770105683622,1.0871648,104.78,104.75,14.13728451]
[1770105684025,1.0871648,104.79,104.76,1.08503911]
[1770105684435,1.0871648,104.79,104.75,14.1362949]
[1770105686237,1.0871648,104.79,104.76,4.58929316]
[1770105686422,1.0871648,104.8,104.77,14.1338865]
[1770105686625,1.0871648,104.8,104.77,9.54459334]
[1770105686833,1.0871648,104.8,104.77,13.04981439]
[1770105687339,1.0871648,104.8,104.77,14.13341131]
[1770105689338,1.0871648,104.78,104.75,9.54612474]
[1770105689640,1.0871648,104.78,104.75,14.13354964]
[1770105689819,1.0871648,104.78,104.76,13.05077074]
[1770105690428,1.0871648,104.8,104.77,4.5874249]
[1770105691221,1.0871648,104.81,104.78,14.13077723]
[1770105691421,1.0871648,104.81,104.79,3.50522105]
[1770105692238,1.1871648,104.82,104.79,3.50522105]
[1770105694128,1.1871648,104.82,104.78,10.62510767]
[1770105694444,1.0871648,104.81,104.79,3.50199521]
[1770105695446,1.0871648,104.81,104.78,14.12710288]
[1770105696539,9.64032236,104.82,104.79,10.62232411]
[1770105696540,1.1871648,104.82,104.79,10.62232411]
[1770105696739,1.1871648,104.82,104.78,1.07913512]
[1770105697048,1.0871648,104.8,104.77,14.12538036]
[1770105697924,1.0871648,104.8,104.77,10.62338515]
[1770105698126,1.0871648,104.8,104.76,3.50199521]
[1770105698127,1.0871648,104.79,104.76,14.12598524]
[1770105699334,1.0871648,104.78,104.75,9.54610827]
[1770105699942,1.0871648,104.78,104.75,10.62400231]
[1770105700324,1.0871648,104.78,104.76,9.54517125]
[1770105700521,1.0871648,104.76,104.73,3.50199521]
[1770105700746,1.0871648,104.76,104.73,9.54790512]
[1770105701046,1.0871648,104.75,104.72,9.54884541]
[1770105701242,4.58916001,104.75,104.72,9.54884541]
[1770105701626,1.0871648,104.74,104.71,10.62728823]
[1770105701939,1.0871648,104.73,104.7,13.05271737]
[1770105702324,1.0871648,104.73,104.7,14.1298076]
[1770105704426,1.0871648,104.75,104.71,4.57829999]
[1770105705128,1.0871648,104.78,104.74,4.57791401]
[1770105705328,1.0871648,104.78,104.76,3.50199521]
[1770105705528,1.0871648,104.79,104.76,3.50199521]
[1770105705744,1.0871648,104.8,104.77,3.50199521]
[1770105707343,1.0871648,104.8,104.77,13.04665091]
[1770105707959,1.0871648,104.79,104.76,13.04721974]
[1770105708554,1.0871648,104.79,104.76,9.54522453]
[1770105708741,1.0871648,104.76,104.72,3.50199521]
[1770105708941,1.0871648,104.76,104.71,27.59441874]
[1770105708942,1.0871648,104.74,104.71,9.54975733]
[1770105709754,1.0871648,104.75,104.72,4.57604964]
[1770105710645,1.0871648,104.75,104.73,9.54836245]
[1770105712659,1.0871648,104.75,104.72,9.54905475]
[1770105713154,1.07618325,104.74,104.72,9.54905475]
[1770105713543,1.14853447,104.73,104.71,9.54985862]
[1770105715669,1.14853447,104.71,104.69,9.55154136]
[1770105716241,1.14853447,104.72,104.69,9.55166217]
[1770105716458,1.14853447,104.72,104.7,9.55099168]
[1770105716869,1.14853447,104.72,104.69,9.55153355]
[1770105717163,9.91490267,104.72,104.69,9.55153355]
[1770105717678,1.14853447,104.72,104.69,9.55153355]
[1770105718371,1.14853447,104.72,104.69,18.31790175]
[1770105718978,1.14853447,104.72,104.68,9.5524574]
[1770105719174,1.14853447,104.71,104.68,9.5524574]
[1770105719479,1.14853447,104.71,104.68,10.6227703]
[1770105719860,1.14853447,104.71,104.68,19.3891385]
[1770105720264,9.91490267,104.71,104.68,9.5524574]
[1770105720579,1.14853447,104.71,104.68,19.38882135]
[1770105720757,1.14853447,104.71,104.68,10.62245315]
[1770105720962,1.14853447,104.71,104.68,19.38882135]
[1770105721277,1.14853447,104.73,104.7,9.83605044]
[1770105721572,1.14853447,104.75,104.72,9.83574053]
[1770105721774,1.14853447,104.76,104.72,9.83574053]
[1770105722072,1.14853447,104.76,104.73,9.83574053]
[1770105722876,1.14853447,104.76,104.73,1.06937233]
[1770105723183,9.91490267,104.75,104.71,43.26108598]
[1770105723482,1.14853447,104.75,104.71,43.26108598]
[1770105724474,1.14853447,104.74,104.71,10.61925221]
[1770105724685,1.14853447,104.74,104.71,19.38562041]
[1770105725051,1.14853447,104.74,104.71,10.61925221]
[1770105725251,1.14853447,104.73,104.71,9.55018622]
[1770105726473,1.14853447,104.74,104.71,19.38472232]
[1770105727980,1.14853447,104.76,104.73,9.83395443]
[1770105728183,9.54455208,104.78,104.72,9.54864327]
[1770105728184,1.14853447,104.77,104.74,1.06758623]
[1770105728378,1.14853447,104.77,104.74,9.83395443]
[1770105728679,9.91490267,104.77,104.73,9.83395443]
[1770105728869,1.14853447,104.77,104.74,9.8336686]
[1770105729778,10.69185764,104.79,104.75,1.06701785]
[1770105729983,1.14853447,104.8,104.76,19.37827282]
[1770105730383,1.14853447,104.8,104.76,10.61190462]
[1770105730586,1.14853447,104.79,104.76,19.37827282]
[1770105731662,1.14853447,104.79,104.76,43.24234307]
[1770105731862,1.24853447,104.82,104.78,9.83283065]
[1770105732067,0.1,104.82,104.8,8.7663682]
[1770105732686,0.1,104.85,104.83,0.96618953]
[1770105732887,0.1,104.85,104.83,8.7663682]
[1770105733186,1.14853447,104.84,104.8,9.73255773]
[1770105733668,9.91490267,104.84,104.8,9.73255773]
[1770105734077,1.14853447,104.83,104.8,19.27388366]
[1770105734391,1.14853447,104.83,104.8,9.54132593]
[1770105734580,1.14853447,104.82,104.79,18.30866984]
[1770105734788,1.14853447,104.82,104.79,9.54230164]
[1770105735210,1.14853447,104.81,104.79,9.54230164]
[1770105735571,9.91490267,104.81,104.78,9.54350087]
[1770105736679,1.14853447,104.8,104.78,9.54350087]
[1770105737201,1.14853447,104.8,104.77,18.31070237]
[1770105737392,9.91490267,104.8,104.77,9.54433417]
[1770105738385,1.14853447,104.79,104.77,9.54433417]
[1770105738981,1.14853447,104.77,104.73,24.83361478]
[1770105739293,1.14853447,104.77,104.75,9.54647773]
[1770105739595,1.14853447,104.78,104.75,8.7663682]
[1770105740094,1.14853447,104.78,104.75,18.31247432]
[1770105740269,1.14853447,104.78,104.75,9.54610612]
[1770105740474,1.17155172,104.76,104.74,9.54709013]
[1770105740675,1.17155172,104.75,104.73,9.5482231]
[1770105740882,9.93791992,104.75,104.72,9.54924218]
[1770105742286,9.93791992,104.74,104.7,36.24891108]
[1770105742486,9.93791992,104.74,104.71,9.54997416]
[1770105742686,1.17155172,104.74,104.71,9.54997416]
[1770105742901,1.17155172,104.74,104.71,18.31634236]
[1770105743698,1.17155172,104.74,104.71,9.54997416]
[1770105743909,9.93791992,104.74,104.71,9.54997416]
[1770105746303,9.93791992,104.73,104.69,8.7663682]
[1770105746502,9.93791992,104.73,104.69,0.96091586]
[1770105747407,9.93791992,104.73,104.7,9.55061167]
[1770105748002,1.17155172,104.72,104.69,10.51248462]
[1770105748209,9.93791992,104.72,104.69,10.51248462]
[1770105748499,4.27527085,104.77,104.68,9.55230452]
[1770105748500,9.93791992,104.71,104.68,9.55230452]
[1770105748911,1.17155172,104.68,104.67,0.2]
[1770105749206,1.17155172,104.67,104.65,0.2]
[1770105749402,1.17155172,104.72,104.66,9.92374512]
[1770105749596,9.93791992,104.7,104.66,9.92374512]
[1770105749796,9.93791992,104.68,104.65,0.2]
[1770105750297,9.93791992,104.68,104.65,9.75519591]
[1770105753615,19.49093703,104.68,104.65,0.2]
[1770105753813,8.7663682,104.67,104.65,0.2]
[1770105754013,1.17155172,104.65,104.64,0.2]
[1770105754397,8.7663682,104.66,104.64,9.75657492]
[1770105755307,8.7663682,104.67,104.64,9.75657492]
[1770105755489,8.7663682,104.68,104.65,1.15737692]
[1770105756414,8.77971246,104.68,104.65,10.71289097]
[1770105756802,9.95126418,104.68,104.65,10.71289097]
[1770105758411,9.95126418,104.69,104.66,1.15737692]
[1770105758605,9.95126418,104.7,104.66,1.15737692]
[1770105758811,9.95126418,104.7,104.66,9.93708938]
[1770105759013,9.95126418,104.7,104.67,1.15737692]
[1770105759606,9.95126418,104.69,104.66,1.15737692]
[1770105760227,9.95126418,104.68,104.65,9.55551405]
[1770105760409,9.95126418,104.68,104.65,10.71289097]
[1770105763907,9.95126418,104.69,104.65,10.71289097]
[1770105764107,1.17155172,104.67,104.65,9.55551405]
[1770105764625,9.95126418,104.68,104.65,9.55551405]
[1770105765012,9.95126418,104.68,104.64,10.91355992]
[1770105765228,1.17155172,104.67,104.64,10.91355992]
[1770105765412,1.17155172,104.67,104.64,9.756183]
[1770105765622,9.95126418,104.67,104.64,9.756183]
[1770105767742,19.50429523,104.68,104.65,1.15737692]
[1770105767925,1.17155172,104.66,104.64,9.756183]
[1770105768507,9.95126418,104.67,104.64,9.756183]
[1770105768826,9.95126418,104.65,104.64,0.2]
[1770105769325,9.95126418,104.65,104.62,10.91531051]
[1770105769326,1.17155172,104.64,104.62,0.2]
[1770105769525,9.95126418,104.64,104.62,0.2]
[1770105771724,10.63044236,104.65,104.62,0.2]
[1770105772036,8.77971246,104.66,104.63,1.10818105]
[1770105772512,19.40912608,104.66,104.63,1.10818105]
[1770105772714,9.85436225,104.66,104.63,1.10818105]
[1770105773423,19.40912924,104.66,104.63,1.10818105]
[1770105773627,8.77971246,104.65,104.63,1.10818105]
[1770105773832,19.40912924,104.66,104.63,1.10818105]
[1770105774836,8.77971246,104.65,104.62,10.86652907]
[1770105775616,9.85436225,104.65,104.62,10.86652907]
[1770105775816,8.77971246,104.65,104.62,10.86652907]
[1770105776133,9.85436225,104.65,104.62,10.86652907]
[1770105780034,9.85436225,104.65,104.62,9.75834802]
[1770105780035,1.07464979,104.64,104.62,9.75834802]
[1770105780235,9.85436225,104.64,104.62,0.2]
[1770105781017,9.85436225,104.64,104.62,9.75832023]
[1770105781236,1.07464979,104.64,104.62,9.75832023]
[1770105781442,19.40958922,104.66,104.63,1.10818105]
[1770105781733,9.85436225,104.67,104.64,1.10818105]
[1770105781915,19.40768133,104.68,104.64,1.10818105]
[1770105782112,1.07464979,104.67,104.64,1.10818105]
[1770105782311,19.40768133,104.68,104.64,1.10818105]
[1770105782528,9.85436225,104.67,104.64,1.10818105]
[1770105782927,9.55331908,104.68,104.63,1.10818105]
[1770105782928,9.85436225,104.66,104.63,1.10818105]
[1770105783122,33.43562706,104.68,104.62,10.86644476]
[1770105783123,9.85436225,104.65,104.62,10.86644476]
[1770105784520,8.77971246,104.64,104.62,1.30818105]
[1770105785121,19.41015412,104.65,104.62,1.30818105]
[1770105786041,8.77971246,104.64,104.62,0.2]
[1770105786444,9.85436225,104.65,104.62,10.86656161]
[1770105786624,8.77971246,104.65,104.62,10.86656161]
[1770105786823,9.85436225,104.65,104.62,10.86656161]
[1770105787533,9.85436225,104.65,104.62,1.30818105]
[1770105787743,8.77971246,104.64,104.62,1.30818105]
[1770105789042,1.07464979,104.63,104.6,0.2]
[1770105789234,8.77971246,104.64,104.6,0.2]
[1770105789235,8.77971246,104.61,104.6,0.2]
[1770105789846,9.85436225,104.63,104.6,1.30818105]
[1770105790038,1.07464979,104.63,104.6,1.30818105]
[1770105790238,9.85436225,104.62,104.6,0.2]
[1770105790925,8.77971246,104.61,104.6,0.2]
[1770105791341,1.07464979,104.61,104.57,9.76246033]
[1770105791640,8.77971246,104.61,104.58,9.56158225]
[1770105791842,9.85436225,104.62,104.58,8.77971246]
[1770105792238,1.07464979,104.62,104.58,9.56205775]
[1770105792441,9.85436225,104.62,104.58,9.56205775]
[1770105792941,19.41276728,104.62,104.58,9.56205775]
[1770105793151,9.85436225,104.61,104.57,9.762495]
[1770105793448,9.85436225,104.61,104.58,1.10818105]
[1770105793824,10.63305482,104.62,104.58,1.10818105]
[1770105794020,23.89420114,104.63,104.57,18.54220746]
[1770105794021,9.85436225,104.63,104.6,1.10818105]
[1770105794225,8.77971246,104.62,104.59,10.66892622]
[1770105794638,8.77971246,104.62,104.6,1.10818105]
[1770105795058,9.85436225,104.62,104.59,1.10818105]
[1770105795230,8.77971246,104.61,104.59,1.10818105]
[1770105795846,8.77971246,104.6,104.58,1.10818105]
[1770105796048,9.85436225,104.61,104.58,1.10818105]
[1770105797127,19.41377695,104.61,104.58,1.10818105]
[1770105798435,3.51699568,104.61,104.59,1.10818105]
[1770105798938,3.51699568,104.61,104.58,10.67007406]
[1770105799249,4.59164547,104.61,104.58,10.67007406]
[1770105799642,14.15052799,104.62,104.58,10.67007406]
[1770105799840,3.51699568,104.61,104.58,10.67007406]
[1770105800149,1.08138905,104.6,104.57,10.86529444]
[1770105800328,3.51699568,104.6,104.58,1.10268315]
[1770105800528,4.59838473,104.61,104.58,10.66452913]
[1770105800730,1.08138905,104.61,104.58,10.66452913]
[1770105801250,14.15726725,104.62,104.59,1.10268315]
[1770105802761,4.59838473,104.61,104.58,10.66452913]
[1770105804058,4.59838473,104.6,104.57,10.86527311]
[1770105805029,1.08138905,104.6,104.57,10.86527311]
[1770105807562,9.56100265,104.6,104.56,0.2]
[1770105807764,23.63594562,104.63,104.57,1.12434932]
[1770105808062,3.51699568,104.62,104.58,1.12434932]
[1770105808637,3.51699568,104.62,104.59,1.12434932]
[1770105809647,23.63594562,104.63,104.6,1.12434932]
[1770105809847,23.63594562,104.63,104.61,1.12434932]
[1770105813266,4.59838473,104.66,104.62,1.12434932]
[1770105813468,4.59838473,104.66,104.62,4.641345]
[1770105813761,4.59838473,104.66,104.62,1.12434932]
[1770105814271,37.17195018,104.66,104.62,10.68264161]
[1770105815055,37.17195018,104.66,104.63,1.10268315]
[1770105817569,23.01848465,104.66,104.64,1.10268315]
[1770105818371,14.14560018,104.69,104.65,1.10268315]
[1770105818673,1.10449026,104.68,104.64,9.55614299]
[1770105818972,13.06385979,104.69,104.63,13.06871987]
[1770105818973,4.61620256,104.67,104.63,13.06871987]
[1770105819155,4.61620256,104.67,104.63,9.55700757]
[1770105819356,1.10449026,104.65,104.62,9.55798561]
[1770105821768,1.10449026,104.68,104.63,3.5117123]
[1770105821953,4.61620256,104.68,104.63,3.5117123]
[1770105822146,1.10449026,104.67,104.63,3.5117123]
[1770105823466,10.65650095,104.69,104.65,3.5117123]
[1770105824476,1.10449026,104.7,104.66,3.5117123]
[1770105824849,1.10449026,104.7,104.67,3.5117123]
[1770105825088,1.30449026,104.73,104.68,3.5117123]